Workbook

Sheet 销售预估(500W)
A1: 2016年总体销售预估
A3: 年份 | C3: 销售目标 | D3: 客单价 | E3: 转化率 | F3: 总目标UV | G3: 第一季度：成本最小化、利润最小化、客户量最大化、销售排行最大化 第二季度：低端产品持续走量、中端产品补亏损、打造店铺3-5款爆款产品支撑店铺，同时扩展销售渠道，争取完成店铺销售/支出持平化！ 第三季度：要求产品必须到位，第三季度前关键一月，基础数据的铺垫，货源的准备，营销的手段等在此月准备充足，冲击第三、第四季度。 第四季度：通过前三季产品T度的完成，第四季冲击全年销售额，完成产品销售利润10%参数。考虑参照大型活动拉动店铺销售指标。
A4: 2016 | C4: =SUM(C25:N25) -> 5338529.167 | D4: 40 | E4: =AVERAGE(C14:N14) -> 0.06 | F4: =SUM(C13:N13) -> 2016483.333
A5: 常规 | C5: =D5*E5*F5 -> 1582000 | D5: 40 | E5: 0.07 | F5: =SUM(C20:N20) -> 565000
A6: 付费推广 | C6: =F6*D6*E6 -> 1748553.333 | D6: 40 | E6: 0.07 | F6: =SUM(C16:N18) -> 624483.3333
A7: 淘内活动 | C7: 1630000 | D7: 40 | E7: 0.05 | F7: =SUM(C19:N19) -> 815000
A8: 站外 | C8: 24000 | D8: 40 | E8: 0.05 | F8: =SUM(C21:N21) -> 12000
A9: 2016年1月-2016年12月年度销售目标分解
A11: 月份 | C11: 1月 | D11: 2月 | E11: 3月 | F11: 4月 | G11: 5月 | H11: 6月 | I11: 7月 | J11: 8月 | K11: 9月 | L11: 10月 | M11: 11月 | N11: 12月
A12: 销售量 | C12: =C13*C14 -> 4400 | D12: 707.5 | E12: 3116.666667 | F12: 5666.666667 | G12: 7466.666667 | H12: 8600 | I12: 12740 | J12: 13953.33333 | K12: 16823.33333 | L12: 16846.66667 | M12: 22236.66667 | N12: 16613.33333
A13: 流量预估 | C13: =SUM(C16:C21) -> 88000 | D13: 14150 | E13: 62333.33333 | F13: 113333.3333 | G13: 149333.3333 | H13: 172000 | I13: 182000 | J13: 199333.3333 | K13: 240333.3333 | L13: 240666.6667 | M13: 317666.6667 | N13: 237333.3333
A14: 转化率预估 | C14: 0.05 | D14: 0.05 | E14: 0.05 | F14: 0.05 | G14: 0.05 | H14: 0.05 | I14: 0.07 | J14: 0.07 | K14: 0.07 | L14: 0.07 | M14: 0.07 | N14: 0.07
A15: 客单价预估 | C15: 35 | D15: 35 | E15: 35 | F15: 35 | G15: 35 | H15: 40 | I15: 40 | J15: 40 | K15: 40 | L15: 45 | M15: 45 | N15: 45
A16: 直通车访客 | C16: =C29/5 -> 4500 | D16: =D29/4 -> 1250 | E16: =E29/5 -> 6000 | F16: =F29/2 -> 25000 | G16: =G29/1 -> 50000 | H16: =H29/1.5 -> 40000 | I16: 40000 | J16: =J29/1.2 -> 50000 | K16: =K29/1.2 -> 58333.33333 | L16: 46666.66667 | M16: 66666.66667 | N16: =N29/1 -> 70000
A17: 钻展 | C17: =C30/6 -> 2500 | D17: =D30/5 -> 400 | E17: 3333.333333 | F17: 3333.333333 | G17: 3333.333333 | H17: 5000 | I17: 5000 | J17: 3333.333333 | K17: 5000 | L17: 5000 | M17: =M30/5 -> 10000 | N17: =N30/6 -> 3333.333333
A18: 淘宝客 | C18: 50000 | D18: 1500 | E18: 2000 | F18: 4000 | G18: 5000 | H18: 6000 | I18: 6000 | J18: 5000 | K18: 6000 | L18: 8000 | M18: 20000 | N18: 3000
A19: 淘内外活动 | C19: 20000 | D19: 5000 | E19: 40000 | F19: 50000 | G19: 60000 | H19: 80000 | I19: 80000 | J19: 80000 | K19: 100000 | L19: 100000 | M19: 120000 | N19: 80000
A20: 常规流量 | C20: 10000 | D20: 5000 | E20: 10000 | F20: 30000 | G20: 30000 | H20: 40000 | I20: 50000 | J20: 60000 | K20: 70000 | L20: 80000 | M20: 100000 | N20: 80000
A21: 站外 | C21: 1000 | D21: 1000 | E21: 1000 | F21: 1000 | G21: 1000 | H21: 1000 | I21: 1000 | J21: 1000 | K21: 1000 | L21: 1000 | M21: 1000 | N21: 1000
A22: 全年预计推广费用
C23: 免费试用 | E23: 聚划算 | F23: 陶抢购 | G23: 陶抢购 | H23: 聚划算 | I23: 聚划算 | J23: 陶抢购 | K23: 聚划算 | L23: 聚划算 | M23: 聚划算 | N23: 陶抢购
A24: 项目 | C24: 1月 | D24: 2月 | E24: 3月 | F24: 4月 | G24: 5月 | H24: 6月 | I24: 7月 | J24: 8月 | K24: 9月 | L24: 10月 | M24: 11月 | N24: 12月
A25: 营业目标 | C25: =C12*C15 -> 154000 | D25: 24762.5 | E25: 109083.3333 | F25: 198333.3333 | G25: 261333.3333 | H25: 344000 | I25: 509600 | J25: 558133.3333 | K25: 672933.3333 | L25: 758100 | M25: 1000650 | N25: 747600
A26: 产品成本 | C26: =C12*16.9 -> 74360 | D26: 11956.75 | E26: 52671.66667 | F26: 95766.66667 | G26: 126186.6667 | H26: 145340 | I26: 215306 | J26: 235811.3333 | K26: 284314.3333 | L26: 284708.6667 | M26: 375799.6667 | N26: 280765.3333
A27: 运费 | C27: =C12*8 -> 35200 | D27: 5660 | E27: 24933.33333 | F27: 45333.33333 | G27: 59733.33333 | H27: 68800 | I27: 101920 | J27: 111626.6667 | K27: 134586.6667 | L27: 134773.3333 | M27: 177893.3333 | N27: 132906.6667
A28: 运营推广费用 | C28: =SUM(C29:C32) -> 100625 | D28: 8943.75 | E28: 61925 | F28: 83850 | G28: 84812.5 | H28: 106600 | I28: 109240 | J28: 97700 | K28: 119240 | L28: 123860 | M28: 194650 | N28: 105197.5
A29: 费用细分 | B29: 直通车 | C29: 22500 | D29: 5000 | E29: 30000 | F29: 50000 | G29: 50000 | H29: 60000 | I29: 60000 | J29: 60000 | K29: 70000 | L29: 70000 | M29: 100000 | N29: 70000
B30: 钻展 | C30: 15000 | D30: 2000 | E30: 20000 | F30: 20000 | G30: 20000 | H30: 30000 | I30: 30000 | J30: 20000 | K30: 30000 | L30: 30000 | M30: 50000 | N30: 20000
B31: 淘内，站外活动 | C31: 15000 | D31: 500 | E31: 10000 | F31: 10000 | G31: 10000 | H31: 10000 | I31: 10000 | J31: 10000 | K31: 10000 | L31: 10000 | M31: 10000 | N31: 10000
B32: 淘客 | C32: =C18*C14*C15*0.55 -> 48125 | D32: 1443.75 | E32: 1925 | F32: 3850 | G32: 4812.5 | H32: 6600 | I32: 9240 | J32: 7700 | K32: 9240 | L32: 13860 | M32: 34650 | N32: 5197.5
B33: 合计 | C33: =C25-SUM(C26:C28) -> -56185 | D33: -1798 | E33: -30446.66667 | F33: -26616.66667 | G33: -9399.166667 | H33: 23260 | I33: 83134 | J33: 112995.3333 | K33: 134792.3333 | L33: 214758 | M33: 252307 | N33: 228730.5 | O33: =SUM(C33:N33) -> 925531.6667

Sheet 销售预估 (270W)
A1: 2016年总体销售预估
A2: 年份 | C2: 销售目标 | D2: 客单价 | E2: 转化率 | F2: 总目标UV | G2: 第一季度：成本最小化、利润最小化、客户量最大化、销售排行最大化 第二季度：低端产品持续走量、中端产品补亏损、打造店铺3-5款爆款产品支撑店铺，同时扩展销售渠道，争取完成店铺销售/支出持平化！ 第三季度：要求产品必须到位，第三季度前关键一月，基础数据的铺垫，货源的准备，营销的手段等在此月准备充足，冲击第三、第四季度。 第四季度：通过前三季产品T度的完成，第四季冲击全年销售额，完成产品销售利润30%参数。考虑参照大型活动拉动店铺销售指标。 | O2: 合计
A3: 2016 | C3: =SUM(C20:N20) -> 2700000 | D3: 40 | E3: =AVERAGE(C11:N11) -> 0.0575 | F3: =SUM(C13:N16) -> 1119666.667 | O3: =D3*E3*F3 -> 2575233.333
A4: 常规 | C4: =D4*E4*F4 -> 1040850 | D4: 45 | E4: 0.09 | F4: =SUM(C16:N16) -> 257000 | O4: =D4*E4*F4 -> 1040850
A5: 付费推广 | C5: =F5*D5*E5 -> 861333.3333 | D5: 40 | E5: 0.05 | F5: =SUM(C13:N14) -> 430666.6667 | O5: =D5*E5*F5 -> 861333.3333
A6: 淘内活动 | C6: =F6*D6*E6 -> 756000 | D6: 35 | E6: 0.05 | F6: =SUM(C15:N15) -> 432000 | O6: =D6*E6*F6 -> 756000
A7: 2016年1月-2016年12月年度销售目标分解
A8: 月份 | C8: 1月 | D8: 2月 | E8: 3月 | F8: 4月 | G8: 5月 | H8: 6月 | I8: 7月 | J8: 8月 | K8: 9月 | L8: 10月 | M8: 11月 | N8: 12月
A9: 销售量 | C9: =C10*C11 -> 2857.142857 | D9: =D10*D11 -> 571.4285714 | E9: =E10*E11 -> 2857.142857 | F9: =F10*F11 -> 4285.714286 | G9: =G10*G11 -> 5714.285714 | H9: =H10*H11 -> 6250 | I9: =I10*I11 -> 7142.857143 | J9: =J10*J11 -> 6250 | K9: =K10*K11 -> 7000 | L9: =L10*L11 -> 6666.666667 | M9: =M10*M11 -> 9000 | N9: =N10*N11 -> 7000
A10: 流量预估 | C10: =(C20/C11)/C12 -> 71428.57143 | D10: =D20/D12/D11 -> 14285.71429 | E10: =(E20/E11)/E12 -> 71428.57143 | F10: =(F20/F11)/F12 -> 85714.28571 | G10: =(G20/G11)/G12 -> 114285.7143 | H10: =(H20/H11)/H12 -> 125000 | I10: =(I20/I11)/I12 -> 102040.8163 | J10: =(J20/J11)/J12 -> 89285.71429 | K10: =(K20/K11)/K12 -> 100000 | L10: =(L20/L11)/L12 -> 95238.09524 | M10: =(M20/M11)/M12 -> 128571.4286 | N10: =(N20/N11)/N12 -> 100000
A11: 转化率预估 | C11: 0.04 | D11: 0.04 | E11: 0.04 | F11: 0.05 | G11: 0.05 | H11: 0.05 | I11: 0.07 | J11: 0.07 | K11: 0.07 | L11: 0.07 | M11: 0.07 | N11: 0.07
A12: 客单价预估 | C12: 35 | D12: 35 | E12: 35 | F12: 35 | G12: 35 | H12: 40 | I12: 35 | J12: 40 | K12: 40 | L12: 45 | M12: 50 | N12: 50
A13: 直通车访客 | C13: =C25/2.5 -> 8000 | D13: =D25/1 -> 5000 | E13: =E25/2 -> 10000 | F13: =F25/2 -> 10000 | G13: =G25/1 -> 25000 | H13: =H25/1.5 -> 20000 | I13: =I25/1.5 -> 20000 | J13: =J25/1.2 -> 25000 | K13: =K25/1.2 -> 33333.33333 | L13: =L25/1.5 -> 26666.66667 | M13: =M25/1.5 -> 26666.66667 | N13: =N25/1 -> 20000
A14: 钻展 | C14: =C26/2 -> 5000 | D14: =D26/2 -> 1000 | E14: =E26/1 -> 20000 | F14: =F26/1 -> 20000 | G14: =G26/1 -> 30000 | H14: =H26/1 -> 20000 | I14: =I26/3 -> 10000 | J14: =J26/2 -> 10000 | K14: =K26/2 -> 15000 | L14: =L26/1 -> 30000 | M14: =M26/2 -> 20000 | N14: =N26/1 -> 20000
A15: 淘内外活动，淘客 | C15: 30000 | D15: 2000 | E15: 40000 | F15: 30000 | G15: 50000 | H15: 50000 | I15: 40000 | J15: 40000 | K15: 40000 | L15: 40000 | M15: 40000 | N15: 30000
A16: 常规流量 | C16: 5000 | D16: 4000 | E16: 8000 | F16: 10000 | G16: 15000 | H16: 25000 | I16: 20000 | J16: 25000 | K16: 30000 | L16: 35000 | M16: 40000 | N16: 40000
A17: 全年预计推广费用
E18: 免费试用 | F18: 淘抢购 | G18: 聚划算 | H18: 淘抢购 | I18: 聚划算 | J18: 淘抢购 | K18: 聚划算 | L18: 聚划算 | M18: 聚划算 | N18: 淘抢购
A19: 项目 | C19: 1月 | D19: 2月 | E19: 3月 | F19: 4月 | G19: 5月 | H19: 6月 | I19: 7月 | J19: 8月 | K19: 9月 | L19: 10月 | M19: 11月 | N19: 12月
A20: 营业目标 | C20: 100000 | D20: 20000 | E20: 100000 | F20: 150000 | G20: 200000 | H20: 250000 | I20: 250000 | J20: 250000 | K20: 280000 | L20: 300000 | M20: 450000 | N20: 350000
A21: 营业目标 | C21: 100000 | D21: =D9*D12 -> 20000 | E21: =E9*E12 -> 100000 | F21: =F9*F12 -> 150000 | G21: =G9*G12 -> 200000 | H21: =H9*H12 -> 250000 | I21: =I9*I12 -> 250000 | J21: =J9*J12 -> 250000 | K21: =K9*K12 -> 280000 | L21: =L9*L12 -> 300000 | M21: =M9*M12 -> 450000 | N21: =N9*N12 -> 350000 | O21: =SUM(C21:N21) -> 2700000
A22: 产品成本 | C22: =C9*11 -> 31428.57143 | D22: =D20*0.28 -> 5600 | E22: =E20*0.28 -> 28000 | F22: =F20*0.28 -> 42000 | G22: =G20*0.28 -> 56000 | H22: =H20*0.28 -> 70000 | I22: =I20*0.28 -> 70000 | J22: =J20*0.28 -> 70000 | K22: =K20*0.28 -> 78400 | L22: =L20*0.28 -> 84000 | M22: =M20*0.28 -> 126000 | N22: =N20*0.28 -> 98000 | O22: =SUM(C22:N22) -> 759428.5714
A23: 运费 | C23: =C9*8 -> 22857.14286 | D23: =D20*0.2 -> 4000 | E23: =E20*0.2 -> 20000 | F23: =F20*0.2 -> 30000 | G23: =G20*0.2 -> 40000 | H23: =H20*0.2 -> 50000 | I23: =I20*0.2 -> 50000 | J23: =J20*0.2 -> 50000 | K23: =K20*0.2 -> 56000 | L23: =L20*0.2 -> 60000 | M23: =M20*0.2 -> 90000 | N23: =N20*0.2 -> 70000 | O23: =SUM(C23:N23) -> 542857.1429
A24: 运营推广费用 | C24: =SUM(C25:C27) -> 45000 | D24: =SUM(D25:D27) -> 7500 | E24: =SUM(E25:E27) -> 50000 | F24: =SUM(F25:F27) -> 50000 | G24: =SUM(G25:G27) -> 65000 | H24: =SUM(H25:H27) -> 60000 | I24: =SUM(I25:I27) -> 70000 | J24: =SUM(J25:J27) -> 60000 | K24: =SUM(K25:K27) -> 80000 | L24: =SUM(L25:L27) -> 80000 | M24: =SUM(M25:M27) -> 90000 | N24: =SUM(N25:N27) -> 50000 | O24: =SUM(C24:N24) -> 707500
A25: 费用细分 | B25: 直通车 | C25: 20000 | D25: 5000 | E25: 20000 | F25: 20000 | G25: 25000 | H25: 30000 | I25: 30000 | J25: 30000 | K25: 40000 | L25: 40000 | M25: 40000 | N25: 20000 | O25: =SUM(C25:N25) -> 320000
B26: 钻展 | C26: 10000 | D26: 2000 | E26: 20000 | F26: 20000 | G26: 30000 | H26: 20000 | I26: 30000 | J26: 20000 | K26: 30000 | L26: 30000 | M26: 40000 | N26: 20000 | O26: =SUM(C26:N26) -> 272000
B27: 淘内，站外活动 | C27: 15000 | D27: 500 | E27: 10000 | F27: 10000 | G27: 10000 | H27: 10000 | I27: 10000 | J27: 10000 | K27: 10000 | L27: 10000 | M27: 10000 | N27: 10000 | O27: =SUM(C27:N27) -> 115500
B28: 合计 | C28: =C20-SUM(C22:C24) -> 714.2857143 | D28: =D20-SUM(D22:D24) -> 2900 | E28: =E20-SUM(E22:E24) -> 2000 | F28: =F20-SUM(F22:F24) -> 28000 | G28: =G20-SUM(G22:G24) -> 39000 | H28: =H20-SUM(H22:H24) -> 70000 | I28: =I20-SUM(I22:I24) -> 60000 | J28: =J20-SUM(J22:J24) -> 70000 | K28: =K20-SUM(K22:K24) -> 65600 | L28: =L20-SUM(L22:L24) -> 76000 | M28: =M20-SUM(M22:M24) -> 144000 | N28: =N20-SUM(N22:N24) -> 132000 | O28: =SUM(C28:N28) -> 690214.2857
